{"text_format":"3","workbook":"xlsx","n_sheets":3,"sheets":["Список студентів","Список групи","Відомості про студента"],"not_rendered":{"images":2,"defined_names":8},"read":"whole","date_system":"1900"}

{"sheet":"Список студентів","index":0,"n_rows":8,"n_cols":13,"rows_kept":8,"merged":[[1,2,2,3],[1,4,1,11],[2,4,2,11],[6,12,8,16]]}
[]
[null,null,"Список студентів",null,"ПЕРЕЙТИ ДО СПИСКУ ГРУПИ"]
[{"$nulls":4},"ПЕРЕЙТИ ДО ВІДОМОСТЕЙ ПРО СТУДЕНТА"]
[null,null,"ІМ’Я СТУДЕНТА","ЕЛ. ПОШТА","ДОМАШНІЙ ТЕЛЕФОН","МОБІЛЬНИЙ ТЕЛЕФОН","ДАТА НАРОДЖЕННЯ","КОНТАКТИ ДЛЯ ЕКСТРЕНОГО ЗВ’ЯЗКУ","НОМЕР ЕКСТРЕНОГО ВИКЛИКУ","ЛІКАР","НОМЕР ТЕЛЕФОНУ ЛІКАРЯ","  "]
[null,null,"Ім’я 1","Адреса електронної пошти","Домашній телефон","Мобільний телефон","Дата","Контактна особа 1","Номер екстреного виклику","Лікар 1","Номер телефону лікаря"]
[null,null,"Ім’я 2","Адреса електронної пошти","Домашній телефон","Мобільний телефон","Дата","Контактна особа 2","Номер екстреного виклику","Лікар 2","Номер телефону лікаря"]
[null,null,"Ім’я 3","Адреса електронної пошти","Домашній телефон","Мобільний телефон","Дата","Контактна особа 3","Номер екстреного виклику","Лікар 3","Номер телефону лікаря",null,"Порада: натисніть клавішу Tab в останній клітинці таблиці, щоб додати більше студентів."]
[null,null,"Ім’я 4","Адреса електронної пошти","Домашній телефон","Мобільний телефон","Дата","Контактна особа 4","Номер екстреного виклику","Лікар 4","Номер телефону лікаря"]

{"sheet":"Список групи","index":1,"n_rows":12,"n_cols":7,"rows_kept":12,"merged":[[1,2,2,2],[1,3,2,3],[1,4,1,6],[2,4,2,6]]}
[]
[null,null,"Список групи","Проектний інститут","ПЕРЕЙТИ ДО СПИСКУ СТУДЕНТІВ"]
[{"$nulls":4},"ПЕРЕЙТИ ДО ВІДОМОСТЕЙ ПРО СТУДЕНТА"]
[null,null,"КУРС","Назва курсу","ДАТА ПОЧАТКУ","Дата"]
[null,null,"ВИКЛАДАЧ","Викладач 1","ДАТА ЗАВЕРШЕННЯ","Дата"]
[null,null,"ЗАРЕЄСТРОВАНІ СТУДЕНТИ",{"$f":"COUNTA(Список_Студентів[ІМ’Я СТУДЕНТА])","v":4}]
[]
[null,null,"ІМ’Я СТУДЕНТА","ЕЛ. ПОШТА","ДОМАШНІЙ ТЕЛЕФОН","МОБІЛЬНИЙ ТЕЛЕФОН","  "]
[null,null,"Ім’я 1",{"$f":"IFERROR(VLOOKUP(Список_Студентів[[#This Row],[ІМ’Я СТУДЕНТА]],Студенти[],2),\"\")","v":"Адреса електронної пошти"},{"$f":"IFERROR(VLOOKUP(Список_Студентів[[#This Row],[ІМ’Я СТУДЕНТА]],Студенти[],3),\"\")","v":"Домашній телефон"},{"$f":"IFERROR(VLOOKUP(Список_Студентів[[#This Row],[ІМ’Я СТУДЕНТА]],Студенти[],4),\"\")","v":"Мобільний телефон"}]
[null,null,"Ім’я 2",{"$f":"IFERROR(VLOOKUP(Список_Студентів[[#This Row],[ІМ’Я СТУДЕНТА]],Студенти[],2),\"\")","v":"Адреса електронної пошти"},{"$f":"IFERROR(VLOOKUP(Список_Студентів[[#This Row],[ІМ’Я СТУДЕНТА]],Студенти[],3),\"\")","v":"Домашній телефон"},{"$f":"IFERROR(VLOOKUP(Список_Студентів[[#This Row],[ІМ’Я СТУДЕНТА]],Студенти[],4),\"\")","v":"Мобільний телефон"}]
[null,null,"Ім’я 3",{"$f":"IFERROR(VLOOKUP(Список_Студентів[[#This Row],[ІМ’Я СТУДЕНТА]],Студенти[],2),\"\")","v":"Адреса електронної пошти"},{"$f":"IFERROR(VLOOKUP(Список_Студентів[[#This Row],[ІМ’Я СТУДЕНТА]],Студенти[],3),\"\")","v":"Домашній телефон"},{"$f":"IFERROR(VLOOKUP(Список_Студентів[[#This Row],[ІМ’Я СТУДЕНТА]],Студенти[],4),\"\")","v":"Мобільний телефон"}]
[null,null,"Ім’я 4",{"$f":"IFERROR(VLOOKUP(Список_Студентів[[#This Row],[ІМ’Я СТУДЕНТА]],Студенти[],2),\"\")","v":"Адреса електронної пошти"},{"$f":"IFERROR(VLOOKUP(Список_Студентів[[#This Row],[ІМ’Я СТУДЕНТА]],Студенти[],3),\"\")","v":"Домашній телефон"},{"$f":"IFERROR(VLOOKUP(Список_Студентів[[#This Row],[ІМ’Я СТУДЕНТА]],Студенти[],4),\"\")","v":"Мобільний телефон"}]

{"sheet":"Відомості про студента","index":2,"n_rows":13,"n_cols":4,"rows_kept":13,"merged":[[1,2,2,2],[1,3,1,4],[2,3,2,4],[3,2,3,3]]}
[]
[null,null,"Відомості про студента","ПЕРЕЙТИ ДО СПИСКУ СТУДЕНТІВ"]
[{"$nulls":3},"ПЕРЕЙТИ ДО СПИСКУ ГРУПИ"]
[null,null,"ПОРАДА. ЩОБ ОНОВИТИ ВІДОМОСТІ ПРО СТУДЕНТА, ВИБЕРІТЬ ЙОГО В РОЗКРИВНОМУ СПИСКУ В КЛІТИНЦІ D5"]
[null,null,"ІМ’Я СТУДЕНТА","Ім’я 1"]
[null,null,"ЕЛ. ПОШТА",{"$f":"IFERROR(VLOOKUP(Ім_яСтудента,Студенти[],2,FALSE),\"\")","v":"Адреса електронної пошти"}]
[null,null,"ДОМАШНІЙ ТЕЛЕФОН",{"$f":"IFERROR(VLOOKUP(Ім_яСтудента,Студенти[],3,FALSE),\"\")","v":"Домашній телефон"}]
[null,null,"МОБІЛЬНИЙ ТЕЛЕФОН",{"$f":"IFERROR(VLOOKUP(Ім_яСтудента,Студенти[],4,FALSE),\"\")","v":"Мобільний телефон"}]
[null,null,"ДАТА НАРОДЖЕННЯ",{"$f":"IFERROR(VLOOKUP(Ім_яСтудента,Студенти[],5,FALSE),\"\")","v":"Дата"}]
[null,null,"КОНТАКТИ ДЛЯ ЕКСТРЕНОГО ЗВ’ЯЗКУ",{"$f":"IFERROR(VLOOKUP(Ім_яСтудента,Студенти[],6,FALSE),\"\")","v":"Контактна особа 1"}]
[null,null,"НОМЕР ЕКСТРЕНОГО ВИКЛИКУ",{"$f":"IFERROR(VLOOKUP(Ім_яСтудента,Студенти[],7,FALSE),\"\")","v":"Номер екстреного виклику"}]
[null,null,"ЛІКАР",{"$f":"IFERROR(VLOOKUP(Ім_яСтудента,Студенти[],8,FALSE),\"\")","v":"Лікар 1"}]
[null,null,"НОМЕР ТЕЛЕФОНУ ЛІКАРЯ",{"$f":"IFERROR(VLOOKUP(Ім_яСтудента,Студенти[],9,FALSE),\"\")","v":"Номер телефону лікаря"}]